Cogmind - Beta 13 @@@ ROGUE MODE // 2024.04.07 @ 15:17:50 Player: LEWiKK Result: Destroyed by S-10 Pest with Light Assault Rifle Performance ------------- Evolutions (0) 0 Regions Visited (2) 400 Robots Destroyed (28) 140 Value Destroyed (815) 815 Prototype IDs (0) 0 Alien Tech Used (0) 0 Bonus (0) 0 TOTAL SCORE: 1355 Bonus ------- None Cogmind --------- Core Integrity 0/250 Matter 106/300 Energy 125/125 System Corruption 3% Temperature Cool (0) Movement Walking (120) Location -10/Subcaves Parts ------- > --- POWER (1) -------- Light Ion Engine > --- PROPULSION (2) --- Aluminum Leg Aluminum Leg > --- UTILITY (2) ------ Improved Terrain Scanner > --- WEAPON (2) ------- Assault Rifle > --- INVENTORY (5) ---- Light Nuclear Core Peak State ------------ > --- POWER ------------ Ion Engine > --- PROPULSION ------- Aluminum Leg Aluminum Leg > --- UTILITY ---------- Improved Terrain Scanner Terrain Scan Processor > --- WEAPON ----------- Light Assault Rifle Grenade Launcher > --- INVENTORY -------- Light Ion Engine Aluminum Leg Aluminum Leg Terrain Scanner Grenade Launcher [Rating: 10] Favorites ----------- Power Ion Engine Engine Ion Engine Propulsion Aluminum Leg Leg Aluminum Leg Utility Improved Terrain Scanner Device Improved Terrain Scanner Storage Medium Storage Unit Processor Terrain Scan Processor Protection Light Armor Plating Weapon Grenade Launcher Energy Gun Small Laser Ballistic Gun Light Assault Rifle Launcher Grenade Launcher Special Weapon Mining Laser Build | -11 -10 -10 ------- Run | Yrd Mat Sub Slots Evolved . | . . . Power . | . . . Propulsion . | . . . Utility . | . . . Weapon . | . . . Parts Attached 26 | 5 16 5 Power 4 | 1 2 1 Engine 4 | 1 2 1 Core . | . . . Reactor . | . . . Propulsion 6 | 2 2 2 Treads . | . . . Leg 6 | 2 2 2 Wheel . | . . . Hover . | . . . Flight . | . . . Utility 6 | 1 5 . Device 2 | . 2 . Storage 2 | 1 1 . Processor 1 | . 1 . Hackware . | . . . Protection 1 | . 1 . Artifact . | . . . Weapon 10 | 1 7 2 Energy Gun 1 | . 1 . Energy Cannon . | . . . Ballistic Gun 3 | 1 1 1 Ballistic Cannon . | . . . Launcher 4 | . 3 1 Special Weapon 2 | . 2 . Impact Weapon . | . . . Slashing Weapon . | . . . Piercing Weapon . | . . . Special Melee Weapon . | . . . Unidentified Prototypes . | . . . Parts Lost 11 | . 4 7 Power 2 | . 1 1 Propulsion 3 | . 1 2 Utility 2 | . 1 1 Weapon 4 | . 1 3 Highest Loss Streak 4 | . 2 4 To Critical Strikes . | . . . Average Slot Usage (%) 94 | . 95 92 Engine 13 | . 13 14 Leg 27 | . 27 26 Device 10 | . 9 14 Storage 3 | . 4 . Processor 9 | . 9 8 Protection 1 | . 1 . Ballistic Gun 13 | . 13 14 Launcher 12 | . 11 14 Naked Turns . | . . . Heaviest Build 22 | 11 22 11 Greatest Support 20 | 20 20 20 Greatest Overweight (x) 1 | 1 1 1 Average Overweight (x) . | . . . Largest Inventory Capacity 10 | 8 10 5 Average Capacity 6 | 7 6 5 Most Carried 10 | 3 10 5 Average Carried 4 | 1 5 3 Final Capacity 8 | 8 5 5 Final Carried 5 | 1 5 1 Class Distribution -------------------- 64% | Scavenger-Mutant 35% | Mutant Dominant Class ---------------- Scavenger-Mutant | -10/Materials Scavenger-Mutant | -10/Subcaves Resources | -11 -10 -10 ----------- Run | Yrd Mat Sub Matter Collected 794 | 194 358 242 Remotely . | . . . Salvage Created 543 | . 399 144 Parts 45 | . 36 9 Haulers Intercepted . | . . . Recyclers Shooed 1 | . 1 . Parts Field Recycled . | . . . Retrieved Matter . | . . . Parts Self-Destructed 8 | . . 8 Prevented . | . . . Kills | -11 -10 -10 ------- Run | Yrd Mat Sub Combat Hostiles Destroyed 23 | . 12 11 Guns 9 | . 8 1 Cannons 1 | . 1 . AOE 13 | . 3 10 Classes Destroyed 6 | . 5 1 Tunneler 2 | . 2 . Operator 1 | . 1 . Watcher 2 | . 2 . Swarmer 5 | . 3 2 Grunt 11 | . 9 2 Subdweller 7 | . . 7 Best Kill Streak 5 | . 5 4 Combat Bots Only 4 | . 4 4 Max Kills in Single Turn 2 | . 2 2 Gunslinging . | . . . Exploded 2 | . 1 2 Melee . | . . . Uniques/NPCs Destroyed . | . . . Combat | -11 -10 -10 -------- Run | Yrd Mat Sub Hostile Shots Fired 132 | . 68 64 Missed 35 | . 21 14 Damage Taken 1364 | . 590 774 Core 251 | . 89 162 Absorbed by Shields . | . . . Regen/Repaired (Parts) 45 | . 45 . Core Remaining (%) 100 | 100 . . Volleys Fired 127 | . 88 39 Largest 2 | . 2 2 Hottest 120 | . 120 50 Shots Fired 146 | . 104 42 Gun 94 | . 76 18 Cannon . | . . . Launcher 33 | . 9 24 Special 19 | . 19 . Kinetic 91 | . 73 18 Thermal 22 | . 22 . Explosive 33 | . 9 24 Electromagnetic . | . . . Robot Hit Streak 13 | . 13 7 Robot Miss Streak 3 | . 3 1 Penetration Max . | . . . Secondary Targets . | . . . Shots Hit Robots 77 | . 57 20 Core Hits 62 | . 33 29 Critical Kills . | . . . Critical Parts Destroyed 1 | . . 1 Critical Strikes 2 | . . 2 Destroy 2 | . . 2 Melee Attacks . | . . . Impact . | . . . Slashing . | . . . Piercing . | . . . Sneak Attacks . | . . . Combat Hostiles . | . . . Follow-up Attacks . | . . . Damage Inflicted 2515 | . 819 1696 Guns 596 | . 450 146 Cannons . | . . . Explosions 1871 | . 321 1550 Melee . | . . . Ramming . | . . . Kinetic 562 | . 416 146 Thermal 82 | . 82 . Explosive 1871 | . 321 1550 Electromagnetic . | . . . Impact . | . . . Slashing . | . . . Piercing . | . . . Highest Corruption 3 | . 3 3 Average Corruption 2 | . 2 3 Corruption Purged . | . . . Corruption Blocked . | . . . Effects 52 | . 34 18 Message Errors 7 | . 7 . Matter Fused 18 | . 11 7 Heat Flow Errors 6 | . 1 5 Energy Discharges 6 | . 5 1 Data Loss (minor) 7 | . 3 4 Data Loss (major) 3 | . 3 . Misfires 2 | . 2 . Alerts 3 | . 2 1 Overload Shots . | . . . Overflow Damage 28 | . 8 20 Projectiles . | . . . Explosions 28 | . 8 20 Melee . | . . . Knockbacks . | . . . Impact . | . . . Kinetic . | . . . Secondary . | . . . Self-Inflicted Damage 106 | . 36 70 Shots 8 | . 3 5 Rammed . | . . . Targets Rammed . | . . . Kicked . | . . . Crushed . | . . . Highest Temperature 243 | . 182 243 Average Temperature 63 | . 57 92 Received Heat Transfer 459 | . 261 198 Siege Activations . | . . . Robots Corrupted . | . . . Combat Hostiles . | . . . Parts Fried . | . . . Impact Corruptions . | . . . Robots Melted . | . . . Combat Hostiles . | . . . Parts Melted . | . . . Heat Transferred 175 | . 175 . Parts Sabotaged . | . . . Parts Stolen . | . . . Parts Stripped . | . . . Power Chain Reactions . | . . . Alert | -11 -10 -10 ------- Run | Yrd Mat Sub Peak Influence 169 | . 169 . Initial . | . . . Average 47 | . 48 . Maximum Alert Level . | . . . Low Security (%) 100 | 100 100 . Level 1 . | . . . Level 2 . | . . . Level 3 . | . . . Level 4 . | . . . Level 5 . | . . . High Security . | . . . Max Security . | . . . Squads Dispatched 2 | . 2 . Investigation . | . . . Extermination . | . . . Reinforcement 2 | . 2 . Assault . | . . . Garrison . | . . . Intercept . | . . . Searches Triggered . | . . . Construction Impeded . | . . . Haulers Reinforced . | . . . Active Scanning Responses . | . . . Cargo Convoy Interrupts . | . . . Stealth | -11 -10 -10 --------- Run | Yrd Mat Sub Distress Signals 2 | . 2 . Communications Jammed . | . . . Distress Signals . | . . . Times Spotted 68 | . 36 32 Peak Tracking Total 6 | . 6 6 Tactical Retreats 2 | . 1 1 Traps | -11 -10 -10 ------- Run | Yrd Mat Sub Traps Triggered 2 | . 2 . Indirectly . | . . . Trap Hack Attempts . | . . . Triggered . | . . . Disarmed . | . . . Reprogrammed . | . . . Reused . | . . . Traps Extracted . | . . . Installed . | . . . Triggered 2 | . . 2 Machines | -11 -10 -10 ---------- Run | Yrd Mat Sub Machines Disabled 4 | . 1 3 Max in Single Turn 2 | . 1 2 Machines Repaired . | . . . Machines Dismantled . | . . . Machines Sabotaged . | . . . Overloaded Fab Kills . | . . . Hacking | -11 -10 -10 --------- Run | Yrd Mat Sub Machines Accessed 9 | . 8 1 Terminals 5 | . 5 . Fabricators . | . . . Repair Stations 1 | . 1 . Recycling Units 2 | . 2 . Scanalyzers . | . . . Garrison Access . | . . . Total Hacks 24 | . 20 4 Successful 13 | . 9 4 Failed 11 | . 11 . Catastrophic 4 | . 4 . Database Lockouts . | . . . Manual 6 | . 4 2 Terminals 11 | . 11 . Fabricators . | . . . Repair Stations 7 | . 7 . Recycling Units 2 | . 2 . Scanalyzers . | . . . Garrison Access . | . . . Terminal Hacks 6 | . 2 4 Record 4 | . . 4 Emergency Access Points 1 | . 1 . Locate Traps 1 | . 1 . Fabricator Hacks . | . . . Repair Station Hacks 5 | . 5 . Scan Component 3 | . 3 . Repair 2 | . 2 . Recycling Unit Hacks 2 | . 2 . Report Inventory 2 | . 2 . Scanalyzer . | . . . Garrison Access Hacks . | . . . Unauthorized Hacks . | . . . Terminals . | . . . Fabricators . | . . . Repair Stations . | . . . Recycling Units . | . . . Scanalyzers . | . . . Garrison Access . | . . . Data Cores Recovered 1 | . 1 . Used 1 | . 1 . Hacking Detections 6 | . 6 . Full Trace Events . | . . . Feedback Events . | . . . Feedback Blocked . | . . . Robot Schematics Acquired . | . . . Robots Built . | . . . Authchips . | . . . Time . | . . . Total Robot Build Rating . | . . . Part Schematics Acquired . | . . . Parts Built . | . . . Authchips . | . . . Time . | . . . Total Part Build Rating . | . . . Parts Repaired 2 | . 2 . Time 52 | . 52 . Parts Recycled . | . . . Recycled Matter . | . . . Retrieved Matter . | . . . Retrieved Components . | . . . Parts Scanalyzed . | . . . Part Schematics Acquired . | . . . Parts Damaged . | . . . Bothacking | -11 -10 -10 ------------ Run | Yrd Mat Sub Used RIF Installer . | . . . Robots Hacked . | . . . Non-combat . | . . . Combat . | . . . Robot Hacks Applied . | . . . Relay Couplers Released . | . . . Fabnet Peak Effective % . | . . . Robots Rewired . | . . . Allies Hacked . | . . . Hacks Repelled . | . . . Allies | -11 -10 -10 -------- Run | Yrd Mat Sub Total Allies . | . . . Largest Group . | . . . Highest-Rated Group . | . . . Highest-Rated Ally . | . . . Total Orders . | . . . Ally Attacks . | . . . Total Damage . | . . . Kills . | . . . Allies Corrupted . | . . . Allies Melted . | . . . Intel | -11 -10 -10 ------- Run | Yrd Mat Sub Robot Analysis Total . | . . . Derelict Logs Recovered 1 | . . 1 Drone Launches . | . . . Drone Recoveries . | . . . Exploration | -11 -10 -10 ------------- Run | Yrd Mat Sub Turns Passed 3297 | 44 2277 976 Spaces Moved 1824 | 31 1272 521 Core 7 | 7 . . Treads . | . . . Legs 1817 | 24 1272 521 Wheels . | . . . Hover . | . . . Flight . | . . . Fastest Speed 50 | 50 120 120 Average Speed 124 | 109 123 125 Slowest Speed 190 | 120 190 190 Overloaded Moves . | . . . Propulsion Burnouts . | . . . Robots Hopped . | . . . Cave-ins Triggered . | . . . Exploration Rate (%) 47 | 4 100 39 Regions Visited 2 Branch Regions 1 Pre-discovered Areas . | . . . Known Exits Taken . | . . . Unknown Exits Taken 2 | 1 1 . Scrap Searched . | . . . Spaces Dug . | . . . Terrain Destroyed 144 | . 50 94 Melee . | . . . Projectile 1 | . 1 . AOE 143 | . 49 94 Terrain Rammed . | . . . Walls Destroyed . | . . . Machines Disabled . | . . . Actions | -11 -10 -10 --------- Run | Yrd Mat Sub Total 2720 | 41 1878 801 Wait 698 | . 463 235 Move 1822 | 30 1271 521 Hop . | . . . Pick Up 33 | 6 26 1 Fast Attach . | . . . Attach 19 | 5 9 5 Detach . | . . . Swap 7 | . 7 . Drop 14 | . 14 . Fire 127 | . 88 39 Melee . | . . . Ram . | . . . Kick . | . . . Crush . | . . . Escape Stasis . | . . . Rewire . | . . . Trap . | . . . Miscellaneous . | . . . Route ------- -11/Scrapyard -10/Materials (discovered 6 exits: [*Mat x3] / [*Min x2] / *Sub) -10/Subcaves (discovered 1 exit: [*Rec]) History --------- Turn | Location | Event 8 | -11/Scrapyard | Discovered new exit (range 15) 45 | -11/Scrapyard | Entered Materials 309 | -10/Materials | Build established: Mutant 345 | -10/Materials | Discovered new exit (range 15) 620 | -10/Materials | Discovered new exit (range 4) 620 | -10/Materials | Discovered new exit (range 13) 795 | -10/Materials | Discovered new exit (range 16) 1039 | -10/Materials | Discovered new exit (range 7) 1198 | -10/Materials | Repaired Grenade Launcher 1226 | -10/Materials | Repaired Ion Engine 1312 | -10/Materials | Discovered new exit (range 4) 1332 | -10/Materials | Build established: Scavenger-Mutant 2322 | -10/Materials | Entered Subcaves 2808 | -10/Subcaves | Shifting Twisted Machinery released Battle Cannon 2862 | -10/Subcaves | Shifting Twisted Machinery released Sub. Monowheel 2913 | -10/Subcaves | Core integrity fell below 50% 2955 | -10/Subcaves | Lost 4 parts (1n1u2w) 3084 | -10/Subcaves | Core integrity fell below 20% 3169 | -10/Subcaves | Visited Clippyterm 3173 | -10/Subcaves | Learned Research machine intel 3290 | -10/Subcaves | Discovered new exit (range 10) 3298 | -10/Subcaves | Destroyed by S-10 Pest with Light Assault Rifle Last Messages --------------- hacker when it comes to the important hacks, and I heartily recommend installing Trojan(Botnet) on at least one or two Terminals to improve your odds of success elsewhere. >>Record! "Tab" It looks like you're biased against spaces, I think you need more help than I can offer. System corrupted: Matter fused (-10). FZ-TZW(u) builds Twisted Machinery. System corrupted: Component data lost. System corrupted: Matter fused (-6). S-10 Pest destroyed. Destroyed Flight Unit. Machine disabled. S-10 Pest springs to life. S-10 Pest destroyed. EXIT=FOUND Machine disabled. Lgt. Assault Rifle fries itself beyond repair. Grenade Launcher destroyed. Map ----- +----------------------------------------------------+ | ???????????????#??#??## # #??????????????????????? | | ?????????????????????# ####?#??????????#?????????? | | ?#?????#?????????????# ##?????????#??????????????? | | ?????????????#???????# ##?????#?????????????????? | | ???????????#???????#?# ###?##??????????????????? | | #?????????????#??????## ##?????#?##????#?????????? | | ###???????##??????#?## #???????????????????????? | | #?#?#### ##?######## #???????????????????????? | | ??### #?#"""""## #???????????????????????? | | #??## #?#""X""# ####????????????????????? | | #??# ###" "## #????????????????????? | | #### #### #### #??????????#?????????? | | ## ### ##?## ##???????#????????????? | | ## #### ###??#????????????????? | | ## ## #??????###???????????? | | ## #### ## #??##?? #???????????? | | #### #### ## ### ## ####????????? | | ##### ## #????????? | | ### ?????? | | #?# ## ## ?????? | | # ### # ############## ## # # ##??????? | | # ##?# ####???#???????# ###?? #????????????? | | # #??# #??????????? ??# ###??? #????????????? | | ? ##?# ??????#" ????## ### #?#??????????? | | ? ??# ??????# # #????????????? | | ? #?# ??#?# t s @ ##???????????? | | ? ##?## ????# < s # # ####????????????? | | ###??## ? ??# t #######???????????????? | | #??????# ????## #?????????????????????? | | #??????? ??????# # #?????????????????????? | | #??????????????## ## #?????????????????????? | | ????????????????## ?# ?????????????????????? | | ?????????????????# ? ????????#????????????? | | ?????????????????### ??### ????????????????????? | | ???????????????????# ?????# ????????????????????? | | ??????????????????? ??????#????????????????????? | | ??????????????????? ????????????????????????????? | | ?????????????????? #????????????????????????????? | | ?????????????????????????????????????????????????? | | ?????????????????????????????????????????????????? | | ?????????????????????????????????????????????????? | | ?????????????????????????????????????????????????? | | ?????????????????????????????????????????????????? | | ?????????????????????????????????????????????????? | | ?????????????????????????????????????????????????? | | ?????????????????????????????????????????????????? | | ?????????????????????????????????????????????????? | | ?????????????????????????????????????????????????? | | ?????????????????????????????????????????????????? | | ?????????????????????????????????????????????????? | +----------------------------------------------------+ Best States ------------- Heat Dissipation 25 Energy Generation 10 Energy Capacity 250 Matter Stores 300 Matter Capacity 300 Sight Range 16 Terrain Scan Range 16 Terrain Scan Density 85 Armor Coverage 150 Evasion (%) 55 Item Schematics ----------------- None Robot Schematics ------------------ None Fabricated ------------ Nothing Alien Tech Used ----------------- None Achievements -------------- Maybe Next Time I'll Detach My Launcher Challenges ------------ None Game ------ Seed SignalGlidesysCloak Manual? 0 Play Time 00:32:54 Cumulative 15.5 hours Start 2024.04.07 @ 14:44:14 End 2024.04.07 @ 15:17:50 Sessions 1 Manual Loads 0 Difficulty Rogue Special Mode None Game No. 12 Rogue 12 Adventurer 0 Explorer 0 Win Type - Total 0 Types 0/0/0/0/0/0/0/0/0 Lore% 17 Gallery% 14 Achievement% 14 Wizard Run 0 Options --------- Layout 1 ASCII 0 Keyboard 0 Movement Mouse Keybinds 0 Fullscreen 2 Font 20/SmallcapsGlow Map View 54x42 Zoom Use 0% Tactical HUD 0 Map Filters NONE Filters NONE Steam 1 RUN: f6bb29fe-3be3-48ba-b964-82527793519c